[Event "*** Titled Tuesday Blitz"]
[Site "Chess.com"]
[Date "2020.05.12"]
[Round "6"]
[White "SlovenskiZmaj"]
[Black "Playgood28"]
[Result "1-0"]
[WhiteElo "2530"]
[BlackElo "2259"]
[TimeControl "180+1"]
[EndTime "11:04:24 PDT"]
[Termination "SlovenskiZmaj won by resignation"]

1. d4 {[%clk 0:02:57.2]} 1... f5 {[%clk 0:02:59]} 2. Bg5 {[%clk 0:02:51.8]} 2...
h6 {[%clk 0:02:56.5]} 3. Bh4 {[%clk 0:02:50.6]} 3... g5 {[%clk 0:02:56.2]} 4. e3
{[%clk 0:02:51.2]} 4... Bg7 {[%clk 0:02:53.4]} 5. Bg3 {[%clk 0:02:30.7]} 5...
Nf6 {[%clk 0:02:48.8]} 6. Nc3 {[%clk 0:02:29.1]} 6... d6 {[%clk 0:02:46.1]} 7.
Bc4 {[%clk 0:02:26.9]} 7... e6 {[%clk 0:02:44]} 8. h4 {[%clk 0:02:23.8]} 8... g4
{[%clk 0:02:28.9]} 9. Nge2 {[%clk 0:02:22.7]} 9... O-O {[%clk 0:02:24.1]} 10.
Nf4 {[%clk 0:02:17.3]} 10... Re8 {[%clk 0:02:13.4]} 11. Qe2 {[%clk 0:02:12.3]}
11... d5 {[%clk 0:01:31.3]} 12. Bb3 {[%clk 0:02:12.1]} 12... c6 {[%clk
0:01:26.5]} 13. O-O-O {[%clk 0:02:10.7]} 13... a5 {[%clk 0:01:23.1]} 14. a4
{[%clk 0:02:01.6]} 14... b6 {[%clk 0:01:19.1]} 15. f3 {[%clk 0:02:01.5]} 15...
Ba6 {[%clk 0:01:18.5]} 16. Qf2 {[%clk 0:02:01.2]} 16... Nbd7 {[%clk 0:01:14.4]}
17. e4 {[%clk 0:01:54.9]} 17... fxe4 {[%clk 0:01:02]} 18. fxe4 {[%clk
0:01:53.5]} 18... Rf8 {[%clk 0:00:42.7]} 19. Qe3 {[%clk 0:01:43.8]} 19... e5
{[%clk 0:00:34.4]} 20. dxe5 {[%clk 0:01:38.3]} 20... Nxe5 {[%clk 0:00:33.2]} 21.
Ne6 {[%clk 0:01:37.3]} 21... Qe7 {[%clk 0:00:31.8]} 22. Nxf8 {[%clk 0:01:35.4]}
22... Rxf8 {[%clk 0:00:30.3]} 23. exd5 {[%clk 0:01:35.4]} 23... Nxd5 {[%clk
0:00:28.5]} 24. Nxd5 {[%clk 0:01:33.5]} 24... cxd5 {[%clk 0:00:28.5]} 25. Rxd5
{[%clk 0:01:29.7]} 25... Nd3+ {[%clk 0:00:18.5]} 26. Rxd3+ {[%clk 0:01:26.8]}
1-0

[Event "*** Titled Tuesday Blitz"]
[Site "Chess.com"]
[Date "2020.05.12"]
[Round "6"]
[White "Mfcyryd"]
[Black "Khamrakulov_Djurabek"]
[Result "1-0"]
[WhiteElo "2578"]
[BlackElo "2796"]
[TimeControl "180+1"]
[EndTime "11:04:27 PDT"]
[Termination "Mfcyryd won by resignation"]

1. e4 {[%clk 0:03:00.9]} 1... c6 {[%clk 0:02:59.4]} 2. d4 {[%clk 0:03:00.5]}
2... d5 {[%clk 0:02:59.7]} 3. exd5 {[%clk 0:03:01.4]} 3... cxd5 {[%clk
0:02:59.8]} 4. Bd3 {[%clk 0:03:00.5]} 4... Nc6 {[%clk 0:02:59.8]} 5. c3 {[%clk
0:03:00.9]} 5... Qc7 {[%clk 0:03:00]} 6. Ne2 {[%clk 0:02:58.9]} 6... Bg4 {[%clk
0:02:56.6]} 7. h3 {[%clk 0:02:58.6]} 7... Bh5 {[%clk 0:02:52.2]} 8. O-O {[%clk
0:02:57.4]} 8... e6 {[%clk 0:02:51.3]} 9. Re1 {[%clk 0:02:54.9]} 9... Bd6 {[%clk
0:02:51.2]} 10. Na3 {[%clk 0:02:51.7]} 10... a6 {[%clk 0:02:50.4]} 11. b4 {[%clk
0:02:46.2]} 11... b5 {[%clk 0:02:44.4]} 12. Nc2 {[%clk 0:02:43.5]} 12... Nf6
{[%clk 0:02:42.8]} 13. a4 {[%clk 0:02:42.9]} 13... Rb8 {[%clk 0:02:42.8]} 14.
axb5 {[%clk 0:02:39.6]} 14... axb5 {[%clk 0:02:43.7]} 15. Bg5 {[%clk 0:02:30.2]}
15... Ne4 {[%clk 0:02:40.6]} 16. Bxe4 {[%clk 0:02:27.4]} 16... dxe4 {[%clk
0:02:40.4]} 17. Qd2 {[%clk 0:02:26]} 17... h6 {[%clk 0:02:06.6]} 18. Bf4 {[%clk
0:02:21.7]} 18... Bxe2 {[%clk 0:02:05.2]} 19. Bxd6 {[%clk 0:02:20.9]} 19... Qxd6
{[%clk 0:02:06.1]} 20. Qxe2 {[%clk 0:02:20.6]} 20... f5 {[%clk 0:02:01]} 21. f3
{[%clk 0:02:10.5]} 21... exf3 {[%clk 0:02:00.3]} 22. Qxe6+ {[%clk 0:02:08.8]}
22... Qxe6 {[%clk 0:01:59]} 23. Rxe6+ {[%clk 0:02:09.7]} 23... Kd7 {[%clk
0:01:58]} 24. d5 {[%clk 0:02:03.8]} 24... Nd8 {[%clk 0:01:51.1]} 25. Re5 {[%clk
0:01:57]} 25... fxg2 {[%clk 0:01:38.2]} 26. Rxf5 {[%clk 0:01:51.7]} 26... Re8
{[%clk 0:01:37.5]} 27. Nd4 {[%clk 0:01:42.3]} 27... Re3 {[%clk 0:01:34.5]} 28.
Ra7+ {[%clk 0:01:38.7]} 28... Ke8 {[%clk 0:01:26.3]} 29. Rxg7 {[%clk 0:01:34.2]}
29... Rxc3 {[%clk 0:01:21.7]} 30. d6 {[%clk 0:01:20.4]} 30... Rb7 {[%clk
0:01:10.6]} 31. d7+ {[%clk 0:01:08.3]} 31... Rxd7 {[%clk 0:01:06.6]} 32. Re5+
{[%clk 0:01:08.9]} 32... Ne6 {[%clk 0:01:06.5]} 33. Rxe6+ {[%clk 0:01:07.6]}
33... Kd8 {[%clk 0:01:06.7]} 34. Rg8+ {[%clk 0:00:54.4]} 1-0

[Event "*** Titled Tuesday Blitz"]
[Site "Chess.com"]
[Date "2020.05.12"]
[Round "6"]
[White "Masterbeaterr"]
[Black "Escanor89"]
[Result "0-1"]
[WhiteElo "2334"]
[BlackElo "2563"]
[TimeControl "180+1"]
[EndTime "11:04:28 PDT"]
[Termination "Escanor89 won by resignation"]

1. d4 {[%clk 0:03:00.9]} 1... Nf6 {[%clk 0:02:59.3]} 2. c4 {[%clk 0:03:00.5]}
2... g6 {[%clk 0:02:59.1]} 3. Nc3 {[%clk 0:03:00.3]} 3... Bg7 {[%clk 0:02:59.2]}
4. e4 {[%clk 0:03:00.4]} 4... d6 {[%clk 0:02:59.4]} 5. Nf3 {[%clk 0:03:00.4]}
5... O-O {[%clk 0:02:59.2]} 6. Be2 {[%clk 0:03:00.5]} 6... Bg4 {[%clk
0:02:58.9]} 7. Ng1 {[%clk 0:02:59.1]} 7... Bc8 {[%clk 0:02:57.6]} 8. Nf3 {[%clk
0:02:58.8]} 8... e5 {[%clk 0:02:57.7]} 9. O-O {[%clk 0:02:58.5]} 9... Nc6 {[%clk
0:02:57.6]} 10. d5 {[%clk 0:02:58]} 10... Ne7 {[%clk 0:02:57.5]} 11. Nd2 {[%clk
0:02:58.2]} 11... Nd7 {[%clk 0:02:53.3]} 12. b4 {[%clk 0:02:57.8]} 12... a5
{[%clk 0:02:52.9]} 13. bxa5 {[%clk 0:02:57.4]} 13... Rxa5 {[%clk 0:02:52.4]} 14.
Nb3 {[%clk 0:02:58]} 14... Ra8 {[%clk 0:02:47.5]} 15. Be3 {[%clk 0:02:56.8]}
15... f5 {[%clk 0:02:46]} 16. f3 {[%clk 0:02:57.2]} 16... fxe4 {[%clk
0:02:42.7]} 17. fxe4 {[%clk 0:02:56.6]} 17... Rxf1+ {[%clk 0:02:42.3]} 18. Qxf1
{[%clk 0:02:52.1]} 18... Nf6 {[%clk 0:02:37.1]} 19. c5 {[%clk 0:02:49.4]} 19...
Ng4 {[%clk 0:02:26]} 20. Bxg4 {[%clk 0:02:43.9]} 20... Bxg4 {[%clk 0:02:25.7]}
21. Qf2 {[%clk 0:02:41.1]} 21... Bd7 {[%clk 0:02:18.7]} 22. Rf1 {[%clk 0:02:38]}
22... Qe8 {[%clk 0:02:16.8]} 23. Bg5 {[%clk 0:02:22]} 23... h6 {[%clk
0:02:09.4]} 24. Bf6 {[%clk 0:02:21.4]} 24... Qf7 {[%clk 0:02:03.8]} 25. Bxg7
{[%clk 0:02:11.9]} 25... Qxf2+ {[%clk 0:02:03]} 26. Rxf2 {[%clk 0:02:10.9]}
26... Kxg7 {[%clk 0:02:03.3]} 27. Kf1 {[%clk 0:02:00.8]} 27... Ng8 {[%clk
0:02:02.6]} 28. Ke2 {[%clk 0:01:58.5]} 28... Nf6 {[%clk 0:02:02.2]} 29. h3
{[%clk 0:01:58]} 29... Nh5 {[%clk 0:01:50.2]} 30. Ke3 {[%clk 0:01:57.5]} 30...
Nf4 {[%clk 0:01:43]} 31. h4 {[%clk 0:01:57.6]} 31... g5 {[%clk 0:01:30.2]} 32.
g3 {[%clk 0:01:54.9]} 32... Nh5 {[%clk 0:01:28.3]} 33. hxg5 {[%clk 0:01:47.4]}
33... hxg5 {[%clk 0:01:27.4]} 34. Rg2 {[%clk 0:01:43.1]} 34... Nf6 {[%clk
0:01:25.6]} 35. Rc2 {[%clk 0:01:31.5]} 35... Kf7 {[%clk 0:01:17.8]} 36. cxd6
{[%clk 0:01:27]} 36... cxd6 {[%clk 0:01:17]} 37. Nd2 {[%clk 0:01:27.6]} 37...
Ke7 {[%clk 0:01:12.6]} 38. Nc4 {[%clk 0:01:24]} 38... Rf8 {[%clk 0:01:06.7]} 39.
Nb6 {[%clk 0:01:17.1]} 39... Ng4+ {[%clk 0:01:04.9]} 40. Kd3 {[%clk 0:01:17.2]}
40... Rf3+ {[%clk 0:01:03.4]} 41. Kc4 {[%clk 0:01:17.5]} 41... Ne3+ {[%clk
0:01:02.8]} 0-1

[Event "*** Titled Tuesday Blitz"]
[Site "Chess.com"]
[Date "2020.05.12"]
[Round "6"]
[White "Trankuilizer"]
[Black "Caterpiller35"]
[Result "1-0"]
[WhiteElo "2553"]
[BlackElo "2361"]
[TimeControl "180+1"]
[EndTime "11:04:30 PDT"]
[Termination "Trankuilizer won by resignation"]

1. e4 {[%clk 0:03:00.9]} 1... c5 {[%clk 0:02:59.4]} 2. c3 {[%clk 0:03:00.2]}
2... Nf6 {[%clk 0:02:59.1]} 3. e5 {[%clk 0:03:00.2]} 3... Nd5 {[%clk 0:02:59.3]}
4. d4 {[%clk 0:03:00.8]} 4... cxd4 {[%clk 0:02:59]} 5. Nf3 {[%clk 0:03:01.3]}
5... Nc6 {[%clk 0:02:58.8]} 6. cxd4 {[%clk 0:03:01.6]} 6... d6 {[%clk
0:02:58.9]} 7. Bc4 {[%clk 0:03:02.1]} 7... e6 {[%clk 0:02:59]} 8. O-O {[%clk
0:03:01.4]} 8... Be7 {[%clk 0:02:59]} 9. Qe2 {[%clk 0:03:01.6]} 9... O-O {[%clk
0:02:57.7]} 10. Nc3 {[%clk 0:03:01.5]} 10... Nxc3 {[%clk 0:02:56.3]} 11. bxc3
{[%clk 0:03:02.4]} 11... dxe5 {[%clk 0:02:55.1]} 12. dxe5 {[%clk 0:03:03.3]}
12... Qa5 {[%clk 0:02:54.5]} 13. Bd2 {[%clk 0:03:03.2]} 13... Bd7 {[%clk
0:02:52.8]} 14. Rfe1 {[%clk 0:03:02.6]} 14... Rfd8 {[%clk 0:02:52.1]} 15. Bd3
{[%clk 0:02:57.2]} 15... Be8 {[%clk 0:02:50.6]} 16. Qe4 {[%clk 0:02:57]} 16...
g6 {[%clk 0:02:48.8]} 17. Bc2 {[%clk 0:02:57]} 17... Rac8 {[%clk 0:02:29.8]} 18.
h4 {[%clk 0:02:52.9]} 18... Rd5 {[%clk 0:02:02.2]} 19. Bb3 {[%clk 0:02:45.8]}
19... Rxd2 {[%clk 0:01:23]} 20. Nxd2 {[%clk 0:02:44.1]} 20... Qxc3 {[%clk
0:01:23.2]} 21. Nf3 {[%clk 0:02:41.5]} 21... Na5 {[%clk 0:01:09.5]} 22. Qf4
{[%clk 0:02:33.5]} 22... Nxb3 {[%clk 0:01:04.7]} 23. axb3 {[%clk 0:02:32.8]}
23... Qxb3 {[%clk 0:00:55]} 24. Rxa7 {[%clk 0:02:30.9]} 24... Bc5 {[%clk
0:00:46.8]} 25. Raa1 {[%clk 0:02:20.5]} 25... Qb2 {[%clk 0:00:40.8]} 26. Ng5
{[%clk 0:02:20.1]} 26... h6 {[%clk 0:00:39.8]} 27. Ne4 {[%clk 0:02:14.5]} 27...
Be7 {[%clk 0:00:39.8]} 28. Rab1 {[%clk 0:02:09.3]} 28... Qc2 {[%clk 0:00:35.7]}
29. Rxb7 {[%clk 0:02:05.2]} 29... Bd8 {[%clk 0:00:34.8]} 30. Qxh6 {[%clk
0:01:43.8]} 1-0

[Event "*** Titled Tuesday Blitz"]
[Site "Chess.com"]
[Date "2020.05.12"]
[Round "6"]
[White "AlexTriapishko"]
[Black "Bathory44"]
[Result "1-0"]
[WhiteElo "2772"]
[BlackElo "2594"]
[TimeControl "180+1"]
[EndTime "11:04:35 PDT"]
[Termination "AlexTriapishko won by resignation"]

1. e4 {[%clk 0:02:58]} 1... e6 {[%clk 0:02:59.7]} 2. d4 {[%clk 0:02:57.1]} 2...
d5 {[%clk 0:03:00.2]} 3. Nc3 {[%clk 0:02:58]} 3... Nf6 {[%clk 0:02:59.7]} 4. Bg5
{[%clk 0:02:57.4]} 4... Be7 {[%clk 0:02:59.7]} 5. e5 {[%clk 0:02:53.3]} 5...
Nfd7 {[%clk 0:02:59.7]} 6. Bxe7 {[%clk 0:02:53.9]} 6... Qxe7 {[%clk 0:02:59.7]}
7. f4 {[%clk 0:02:54.8]} 7... O-O {[%clk 0:02:58.8]} 8. Nf3 {[%clk 0:02:55.2]}
8... c5 {[%clk 0:02:59]} 9. Bd3 {[%clk 0:02:30.3]} 9... h6 {[%clk 0:02:30.1]}
10. dxc5 {[%clk 0:02:23.4]} 10... Nxc5 {[%clk 0:02:30.1]} 11. O-O {[%clk
0:02:23.5]} 11... Nc6 {[%clk 0:02:29]} 12. Nb5 {[%clk 0:02:21]} 12... f6 {[%clk
0:02:14.7]} 13. Nd6 {[%clk 0:02:12.3]} 13... fxe5 {[%clk 0:02:09.3]} 14. fxe5
{[%clk 0:02:11.8]} 14... Rxf3 {[%clk 0:01:17.9]} 15. gxf3 {[%clk 0:01:22.4]}
15... Nxe5 {[%clk 0:01:17.5]} 16. Nxc8 {[%clk 0:01:22.3]} 16... Rxc8 {[%clk
0:01:18.4]} 17. f4 {[%clk 0:01:15.9]} 17... Ncxd3 {[%clk 0:01:08.3]} 18. cxd3
{[%clk 0:01:16.8]} 18... Ng6 {[%clk 0:01:04.7]} 19. Qg4 {[%clk 0:01:15.5]} 19...
Qf6 {[%clk 0:01:01.2]} 20. Rae1 {[%clk 0:01:15.6]} 20... Rc6 {[%clk 0:00:50.9]}
21. f5 {[%clk 0:01:11.3]} 21... Ne5 {[%clk 0:00:42.7]} 22. Qg3 {[%clk
0:01:11.4]} 22... Nf7 {[%clk 0:00:27.9]} 23. fxe6 {[%clk 0:01:11.5]} 1-0

[Event "*** Titled Tuesday Blitz"]
[Site "Chess.com"]
[Date "2020.05.12"]
[Round "6"]
[White "mmaks007"]
[Black "mc4chess"]
[Result "1-0"]
[WhiteElo "2253"]
[BlackElo "2398"]
[TimeControl "180+1"]
[EndTime "11:04:39 PDT"]
[Termination "mmaks007 won on time"]

1. e4 {[%clk 0:03:00.9]} 1... c5 {[%clk 0:00:37.3]} 2. Nf3 {[%clk 0:02:54.4]}
2... e6 {[%clk 0:00:38.2]} 3. d4 {[%clk 0:02:54]} 3... cxd4 {[%clk 0:00:39.1]}
4. Nxd4 {[%clk 0:02:54.6]} 4... a6 {[%clk 0:00:39.7]} 5. c4 {[%clk 0:02:54]}
5... Qc7 {[%clk 0:00:39.3]} 6. Nc3 {[%clk 0:02:53.6]} 6... Nf6 {[%clk
0:00:39.8]} 7. Be2 {[%clk 0:02:53.2]} 7... h5 {[%clk 0:00:39.8]} 8. O-O {[%clk
0:02:26.6]} 8... Nc6 {[%clk 0:00:39.4]} 9. Nxc6 {[%clk 0:02:24.6]} 9... bxc6
{[%clk 0:00:40.3]} 10. Be3 {[%clk 0:02:18.1]} 10... Bb4 {[%clk 0:00:27.9]} 11.
Qc2 {[%clk 0:02:01.2]} 11... e5 {[%clk 0:00:26.9]} 12. f3 {[%clk 0:01:57]} 12...
h4 {[%clk 0:00:25.1]} 13. a3 {[%clk 0:01:55]} 13... Be7 {[%clk 0:00:24.9]} 14.
Rad1 {[%clk 0:01:53.9]} 14... Rb8 {[%clk 0:00:24.2]} 15. b4 {[%clk 0:01:52.1]}
15... d6 {[%clk 0:00:21]} 16. Na4 {[%clk 0:01:47.5]} 16... Nh5 {[%clk
0:00:16.3]} 17. c5 {[%clk 0:01:41.8]} 17... Be6 {[%clk 0:00:03.3]} 18. cxd6
{[%clk 0:01:36.5]} 18... Bxd6 {[%clk 0:00:04.2]} 19. Nc5 {[%clk 0:01:32.7]}
19... Bc8 {[%clk 0:00:02.8]} 20. Nxa6 {[%clk 0:01:23.2]} 20... Bxa6 {[%clk
0:00:02.5]} 21. Bxa6 {[%clk 0:01:23.3]} 21... h3 {[%clk 0:00:03.4]} 22. g3
{[%clk 0:01:20.9]} 1-0

[Event "*** Titled Tuesday Blitz"]
[Site "Chess.com"]
[Date "2020.05.12"]
[Round "6"]
[White "Sethu0025"]
[Black "frankshar"]
[Result "1-0"]
[WhiteElo "2729"]
[BlackElo "2345"]
[TimeControl "180+1"]
[EndTime "11:04:42 PDT"]
[Termination "Sethu0025 won by resignation"]

1. d4 {[%clk 0:03:00.9]} 1... Nf6 {[%clk 0:02:59.6]} 2. c4 {[%clk 0:03:00.7]}
2... e6 {[%clk 0:02:59.6]} 3. Nf3 {[%clk 0:03:00.6]} 3... d5 {[%clk 0:02:59.3]}
4. Nc3 {[%clk 0:03:00.3]} 4... c6 {[%clk 0:02:59.4]} 5. e3 {[%clk 0:02:54.2]}
5... a6 {[%clk 0:02:59.2]} 6. a3 {[%clk 0:02:46]} 6... dxc4 {[%clk 0:02:47.2]}
7. Bxc4 {[%clk 0:02:45.5]} 7... b5 {[%clk 0:02:46.2]} 8. Ba2 {[%clk 0:02:45.9]}
8... c5 {[%clk 0:02:46.3]} 9. d5 {[%clk 0:02:37.6]} 9... exd5 {[%clk 0:02:43.6]}
10. Nxd5 {[%clk 0:02:37.3]} 10... Bb7 {[%clk 0:02:39.1]} 11. Nxf6+ {[%clk
0:02:33.5]} 11... Qxf6 {[%clk 0:02:38.2]} 12. e4 {[%clk 0:02:30.3]} 12... Bxe4
{[%clk 0:02:17.2]} 13. Qe2 {[%clk 0:02:11.5]} 13... Qe7 {[%clk 0:01:59.6]} 14.
O-O {[%clk 0:02:10]} 14... Nd7 {[%clk 0:01:56.7]} 15. Ng5 {[%clk 0:01:52]} 15...
Bc6 {[%clk 0:01:26.2]} 16. Bxf7+ {[%clk 0:01:36.3]} 16... Kd8 {[%clk 0:01:25.7]}
17. Be6 {[%clk 0:01:35.5]} 17... Kc7 {[%clk 0:01:16.8]} 18. Bf4+ {[%clk
0:01:34.2]} 18... Kb7 {[%clk 0:01:15.3]} 19. Rad1 {[%clk 0:01:30]} 19... Re8
{[%clk 0:01:08.8]} 20. Rfe1 {[%clk 0:01:24.5]} 20... Nf6 {[%clk 0:01:00.8]} 21.
Nf7 {[%clk 0:01:19.1]} 21... Ne4 {[%clk 0:00:52.9]} 22. Qg4 {[%clk 0:00:53.2]}
22... Qxe6 {[%clk 0:00:32.3]} 23. Nd8+ {[%clk 0:00:50.6]} 1-0

[Event "*** Titled Tuesday Blitz"]
[Site "Chess.com"]
[Date "2020.05.12"]
[Round "6"]
[White "krstulov_alex"]
[Black "Quattroporte300"]
[Result "1-0"]
[WhiteElo "2542"]
[BlackElo "2328"]
[TimeControl "180+1"]
[EndTime "11:04:42 PDT"]
[Termination "krstulov_alex won by resignation"]

1. d4 {[%clk 0:03:00.9]} 1... Nf6 {[%clk 0:02:59.5]} 2. c4 {[%clk 0:03:00.8]}
2... e6 {[%clk 0:02:59.5]} 3. Nf3 {[%clk 0:03:00]} 3... d5 {[%clk 0:02:59.7]} 4.
Nc3 {[%clk 0:02:59.9]} 4... c6 {[%clk 0:02:59.6]} 5. Bg5 {[%clk 0:02:59.9]} 5...
Nbd7 {[%clk 0:02:59.5]} 6. e3 {[%clk 0:03:00]} 6... Qa5 {[%clk 0:02:59.2]} 7.
Nd2 {[%clk 0:02:55.6]} 7... Bb4 {[%clk 0:02:57]} 8. Qc2 {[%clk 0:02:48.2]} 8...
O-O {[%clk 0:02:56.2]} 9. Be2 {[%clk 0:02:48.1]} 9... c5 {[%clk 0:02:55.3]} 10.
cxd5 {[%clk 0:02:41.8]} 10... cxd4 {[%clk 0:02:53.7]} 11. exd4 {[%clk 0:02:36]}
11... Nxd5 {[%clk 0:02:48.1]} 12. Nxd5 {[%clk 0:02:22.9]} 12... Qxd5 {[%clk
0:02:41.7]} 13. Be3 {[%clk 0:02:15]} 13... Qxg2 {[%clk 0:02:38.5]} 14. O-O-O
{[%clk 0:02:12.5]} 14... Qc6 {[%clk 0:02:21.3]} 15. Qxc6 {[%clk 0:02:11.7]}
15... bxc6 {[%clk 0:02:21.4]} 16. Bf3 {[%clk 0:02:12.2]} 16... Bb7 {[%clk
0:02:19.6]} 17. Ne4 {[%clk 0:02:12.3]} 17... Rac8 {[%clk 0:02:16.7]} 18. a3
{[%clk 0:02:07.1]} 18... Be7 {[%clk 0:02:13.2]} 19. Nc5 {[%clk 0:02:04.2]} 19...
Nxc5 {[%clk 0:01:58.8]} 20. dxc5 {[%clk 0:02:05.1]} 20... Rfd8 {[%clk 0:01:48]}
21. b4 {[%clk 0:02:04.9]} 21... e5 {[%clk 0:01:15.5]} 22. Bg4 {[%clk 0:01:41.1]}
22... Rxd1+ {[%clk 0:00:59.8]} 23. Rxd1 {[%clk 0:01:42]} 23... Rd8 {[%clk
0:01:00.2]} 24. Rxd8+ {[%clk 0:01:41.6]} 24... Bxd8 {[%clk 0:01:00.2]} 25. Bd7
{[%clk 0:01:33.2]} 25... Kf8 {[%clk 0:00:46]} 26. b5 {[%clk 0:01:32.7]} 26...
cxb5 {[%clk 0:00:35.2]} 27. c6 {[%clk 0:01:32.6]} 27... Ba6 {[%clk 0:00:30.2]}
28. Bc5+ {[%clk 0:01:32.5]} 28... Kg8 {[%clk 0:00:29.9]} 29. Bd6 {[%clk
0:01:30.3]} 29... Bg5+ {[%clk 0:00:09.9]} 30. Kc2 {[%clk 0:01:28.9]} 30... f5
{[%clk 0:00:10.1]} 31. Bxf5 {[%clk 0:01:28.4]} 1-0

[Event "*** Titled Tuesday Blitz"]
[Site "Chess.com"]
[Date "2020.05.12"]
[Round "6"]
[White "BakaPG"]
[Black "Bulldog167"]
[Result "1-0"]
[WhiteElo "2657"]
[BlackElo "2825"]
[TimeControl "180+1"]
[EndTime "11:04:44 PDT"]
[Termination "BakaPG won by resignation"]

1. e4 {[%clk 0:03:00.9]} 1... c5 {[%clk 0:03:00.1]} 2. c3 {[%clk 0:03:00.5]}
2... d5 {[%clk 0:02:55.2]} 3. exd5 {[%clk 0:03:00.3]} 3... Qxd5 {[%clk
0:02:56.1]} 4. d4 {[%clk 0:03:00.5]} 4... Nc6 {[%clk 0:02:56.4]} 5. Nf3 {[%clk
0:03:00.5]} 5... Bf5 {[%clk 0:02:56.5]} 6. Be3 {[%clk 0:02:53.8]} 6... Nf6
{[%clk 0:02:55.7]} 7. c4 {[%clk 0:02:47.4]} 7... Qd7 {[%clk 0:02:55.3]} 8. d5
{[%clk 0:02:47.3]} 8... Nb4 {[%clk 0:02:53.1]} 9. Na3 {[%clk 0:02:43.3]} 9... e6
{[%clk 0:02:50]} 10. Ne5 {[%clk 0:02:37]} 10... Qc7 {[%clk 0:02:47]} 11. Qa4+
{[%clk 0:02:30.4]} 11... Nd7 {[%clk 0:02:21.9]} 12. Bf4 {[%clk 0:02:21.6]} 12...
Bd6 {[%clk 0:02:18]} 13. Nb5 {[%clk 0:02:12.5]} 13... Qb6 {[%clk 0:01:24.1]} 14.
Nxd7 {[%clk 0:02:10.1]} 14... Kxd7 {[%clk 0:01:23.9]} 15. Nxd6+ {[%clk
0:02:09.6]} 15... Kd8 {[%clk 0:01:19.6]} 16. O-O-O {[%clk 0:01:28.1]} 16... e5
{[%clk 0:01:09.8]} 17. Nxf5 {[%clk 0:01:19.4]} 17... exf4 {[%clk 0:01:09]} 18.
a3 {[%clk 0:01:16.8]} 18... Na2+ {[%clk 0:01:07.4]} 19. Kc2 {[%clk 0:01:15.6]}
19... Qg6 {[%clk 0:01:02]} 20. Bd3 {[%clk 0:01:13.6]} 20... Qxg2 {[%clk
0:01:02]} 21. Rhe1 {[%clk 0:01:10.4]} 21... Qxf2+ {[%clk 0:01:02]} 22. Re2
{[%clk 0:01:08.7]} 22... Qf3 {[%clk 0:01:01.6]} 23. Nd6 {[%clk 0:00:57.5]} 23...
Qg4 {[%clk 0:00:50.8]} 24. Nxb7+ {[%clk 0:00:53]} 24... Kc7 {[%clk 0:00:51]} 25.
Qc6+ {[%clk 0:00:52.7]} 25... Kb8 {[%clk 0:00:51]} 26. Nxc5 {[%clk 0:00:51.1]}
1-0

[Event "*** Titled Tuesday Blitz"]
[Site "Chess.com"]
[Date "2020.05.12"]
[Round "6"]
[White "ALeks_Ivlev"]
[Black "AryanTari"]
[Result "0-1"]
[WhiteElo "2596"]
[BlackElo "2914"]
[TimeControl "180+1"]
[EndTime "11:04:45 PDT"]
[Termination "AryanTari won by resignation"]

1. d4 {[%clk 0:03:00.1]} 1... d5 {[%clk 0:02:59.7]} 2. c4 {[%clk 0:03:00.3]}
2... e6 {[%clk 0:03:00.2]} 3. Nf3 {[%clk 0:03:00.4]} 3... Nf6 {[%clk 0:02:59.8]}
4. g3 {[%clk 0:03:00.6]} 4... dxc4 {[%clk 0:02:58.1]} 5. Bg2 {[%clk 0:03:00.6]}
5... Bb4+ {[%clk 0:02:58.7]} 6. Nbd2 {[%clk 0:03:00.2]} 6... b5 {[%clk
0:02:53.8]} 7. O-O {[%clk 0:02:59.5]} 7... a5 {[%clk 0:02:54]} 8. a4 {[%clk
0:02:51.1]} 8... c6 {[%clk 0:02:52.3]} 9. Qc2 {[%clk 0:02:48.4]} 9... Bb7 {[%clk
0:02:45.7]} 10. b3 {[%clk 0:02:41.2]} 10... cxb3 {[%clk 0:02:13]} 11. Nxb3
{[%clk 0:02:39.5]} 11... Nbd7 {[%clk 0:02:08]} 12. e4 {[%clk 0:02:15.1]} 12...
Be7 {[%clk 0:02:04]} 13. Rd1 {[%clk 0:02:05.9]} 13... O-O {[%clk 0:01:49.5]} 14.
Bd2 {[%clk 0:02:04.6]} 14... c5 {[%clk 0:01:44.4]} 15. e5 {[%clk 0:01:41.3]}
15... Be4 {[%clk 0:01:41.1]} 16. Qb2 {[%clk 0:01:30.4]} 16... Nd5 {[%clk
0:01:40.9]} 17. axb5 {[%clk 0:01:17.1]} 17... a4 {[%clk 0:01:41.3]} 18. Nxc5
{[%clk 0:01:16.9]} 18... Nxc5 {[%clk 0:01:41.4]} 19. dxc5 {[%clk 0:01:17.1]}
19... Bxc5 {[%clk 0:01:41.9]} 20. Re1 {[%clk 0:00:43.9]} 20... Bd3 {[%clk
0:01:41.4]} 21. Rac1 {[%clk 0:00:38.9]} 21... Qb6 {[%clk 0:01:39.9]} 22. Bg5
{[%clk 0:00:26.9]} 22... Rfc8 {[%clk 0:01:39.6]} 23. Qd2 {[%clk 0:00:26.7]}
23... Bxb5 {[%clk 0:01:27.5]} 24. Rb1 {[%clk 0:00:25]} 24... a3 {[%clk
0:01:26.3]} 25. Bf1 {[%clk 0:00:24.2]} 25... Nc3 {[%clk 0:01:18.1]} 26. Bxb5
{[%clk 0:00:22]} 26... Nxb1 {[%clk 0:01:16.7]} 27. Rxb1 {[%clk 0:00:21.7]} 27...
a2 {[%clk 0:01:17]} 28. Ra1 {[%clk 0:00:21.1]} 28... Qxb5 {[%clk 0:01:17.2]} 29.
Rxa2 {[%clk 0:00:21.5]} 29... Qb1+ {[%clk 0:01:17.5]} 30. Kg2 {[%clk 0:00:21.5]}
30... Qxa2 {[%clk 0:01:17.3]} 0-1